Cogmind - Beta 15 @@@ ROGUE MODE // 2025.07.22 @ 18:14:27 Player: scrunkly scrunkaler Result: Self-destructed Performance ------------- Evolutions (0) 0 Regions Visited (4) 800 Robots Destroyed (24) 120 Value Destroyed (529) 529 Prototype IDs (25) 500 Alien Tech Used (0) 0 Bonus (300) 300 TOTAL SCORE: 2249 Bonus ------- Aligned with FarCom 300 Cogmind --------- Core Integrity 139/250 Matter 290/300 Energy 250/250 System Corruption 0% Temperature Cool (0) Movement Treading (160) Location -9/Mines Parts ------- > --- POWER (1) -------- Ion Engine > --- PROPULSION (2) --- Light Treads Light Treads > --- UTILITY (2) ------ Large Storage Unit Machine Analyzer > --- WEAPON (2) ------- Improved Light Cannon Improved Light Cannon > --- INVENTORY (15) --- Ion Engine Heat Sink High-capacity Storage Unit ECM Suite Gatling Laser Beam Cannon Guided Plasma Cannon Assault Rifle Light Assault Rifle Improved Light Cannon Rocket Launcher Peak State ------------ > --- POWER ------------ Ion Engine > --- PROPULSION ------- Light Treads Light Treads > --- UTILITY ---------- Large Storage Unit Machine Analyzer > --- WEAPON ----------- Improved Light Cannon Improved Light Cannon > --- INVENTORY -------- Ion Engine Heat Sink High-capacity Storage Unit ECM Suite Gatling Laser Beam Cannon Guided Plasma Cannon Assault Rifle Light Assault Rifle Improved Light Cannon Rocket Launcher [Rating: 13] Favorites ----------- Power Ion Engine Engine Ion Engine Propulsion Light Treads Treads Light Treads Utility Large Storage Unit Device Heat Sink Storage Large Storage Unit Processor Machine Analyzer Weapon Improved Light Cannon Energy Cannon Beam Cannon Ballistic Gun Light Assault Rifle Ballistic Cannon Improved Light Cannon Build | -11 -10 -10 -10 -9 ------- Run | Yrd Mat Min Exi Min Slots Evolved . | . . . . . Power . | . . . . . Propulsion . | . . . . . Utility . | . . . . . Weapon . | . . . . . Parts Attached 14 | 6 6 1 . 1 Power 1 | 1 . . . . Engine 1 | 1 . . . . Core . | . . . . . Reactor . | . . . . . Propulsion 3 | 2 . 1 . . Treads 3 | 2 . 1 . . Leg . | . . . . . Wheel . | . . . . . Hover . | . . . . . Flight . | . . . . . Utility 4 | 1 3 . . . Device 1 | . 1 . . . Storage 2 | 1 1 . . . Processor 1 | . 1 . . . Hackware . | . . . . . Protection . | . . . . . Artifact . | . . . . . Weapon 6 | 2 3 . . 1 Energy Gun . | . . . . . Energy Cannon 1 | . 1 . . . Ballistic Gun 2 | 2 . . . . Ballistic Cannon 3 | . 2 . . 1 Launcher . | . . . . . Special Weapon . | . . . . . Impact Weapon . | . . . . . Slashing Weapon . | . . . . . Piercing Weapon . | . . . . . Special Melee Weapon . | . . . . . Unidentified Prototypes . | . . . . . Parts Lost 2 | . . 2 . . Power . | . . . . . Propulsion 1 | . . 1 . . Utility . | . . . . . Weapon 1 | . . 1 . . Highest Loss Streak 2 | . . 2 . . To Critical Strikes . | . . . . . Average Backups 7 | . 6 8 9 10 Power . | . 1 1 1 1 Propulsion . | . . . . . Utility 1 | . 1 2 2 3 Weapon 4 | . 4 5 6 6 Tool/Special . | . . . . . Unused Backups 7 | . 1 . . 6 Power 2 | . 1 . . 1 Propulsion . | . . . . . Utility 2 | . . . . 2 Weapon 3 | . . . . 3 Tool/Special . | . . . . . Average Slot Usage (%) 92 | . 97 89 85 92 Engine 14 | . 14 14 14 14 Treads 27 | . 27 28 28 28 Device 3 | . 7 . . . Storage 14 | . 14 14 14 14 Processor 9 | . 4 14 14 14 Energy Cannon 4 | . 6 3 . . Ballistic Cannon 16 | . 19 14 14 21 Peak Build Rating 13 | 6 11 12 11 13 Average Rating 9 | 4 9 10 10 11 On Entrance 7 | . 6 11 10 11 Naked Turns . | . . . . . Heaviest Build 34 | 13 34 32 29 33 Greatest Support 40 | 40 40 40 40 40 Greatest Overweight (x) . | . . . . . Average Overweight (x) . | . . . . . Largest Inventory Capacity 15 | 8 15 15 15 15 Average Capacity 14 | 6 14 15 15 15 Most Carried 11 | 1 9 9 11 11 Average Carried 7 | . 6 8 9 10 Final Capacity 15 | 8 15 15 15 15 Final Carried 11 | 1 9 9 11 11 Class Distribution -------------------- 100% | Mutant Dominant Class ---------------- Mutant | -10/Materials Mutant | -10/Mines Mutant | -10/Exiles Mutant | -9/Mines Resources | -11 -10 -10 -10 -9 ----------- Run | Yrd Mat Min Exi Min Matter Collected 740 | 187 491 62 . . Remotely . | . . . . . Salvage Created 475 | . 475 . . . Parts 34 | . 34 . . . Haulers Intercepted 1 | . 1 . . . Recyclers Shooed . | . . . . . Parts Field Recycled . | . . . . . Retrieved Matter . | . . . . . Parts Self-Destructed . | . . . . . Prevented . | . . . . . Kills | -11 -10 -10 -10 -9 ------- Run | Yrd Mat Min Exi Min Combat Hostiles Destroyed 14 | . 13 1 . . Cannons 13 | . 12 1 . . Classes Destroyed 8 | . 8 . . . Worker 2 | . 2 . . . Builder 1 | . 1 . . . Hauler 1 | . 1 . . . Mechanic 1 | . 1 . . . Operator 2 | . 2 . . . Watcher 3 | . 3 . . . Swarmer 3 | . 3 . . . Grunt 10 | . 10 . . . Best Kill Streak 7 | . 7 1 . . Combat Bots Only 4 | . 4 1 . . Max Kills in Single Turn 2 | . 2 1 . . Gunslinging . | . . . . . Exploded . | . . . . . Melee . | . . . . . Uniques/NPCs Destroyed 1 | . . 1 . . YI-UF0 (-10/Mines) Combat | -11 -10 -10 -10 -9 -------- Run | Yrd Mat Min Exi Min Hostile Shots Fired 64 | . 58 6 . . Missed 15 | . 13 2 . . Hits 49 | . 45 4 . . Projectile 49 | . 45 4 . . AOE 6 | . . 6 . . Damage Taken 637 | . 460 177 . . Core 111 | . 103 8 . . Absorbed by Shields . | . . . . . Regen/Repaired (Parts) 72 | . 72 . . . Core Remaining (%) 100 | 100 . . . . Volleys Fired 69 | . 67 2 . . Largest 2 | . 2 2 . . Hottest 93 | . 93 66 . . Shots Fired 126 | . 123 3 . . Gun . | . . . . . Cannon 126 | . 123 3 . . Launcher . | . . . . . Special . | . . . . . Kinetic 100 | . 97 3 . . Thermal 26 | . 26 . . . Explosive . | . . . . . Electromagnetic . | . . . . . Robot Hit Streak 8 | . 8 4 . . Robot Miss Streak 4 | . 4 . . . Penetration Max . | . . . . . Secondary Targets . | . . . . . Shots Hit Robots 64 | . 61 3 . . Core Hits 25 | . 24 1 . . Critical Kills 1 | . 1 . . . Critical Parts Destroyed . | . . . . . Critical Strikes 3 | . 3 . . . Meltdown 1 | . 1 . . . Blast 2 | . 2 . . . Melee Attacks . | . . . . . Impact . | . . . . . Slashing . | . . . . . Piercing . | . . . . . Sneak Attacks . | . . . . . Combat Hostiles . | . . . . . Follow-up Attacks . | . . . . . Damage Inflicted 1362 | . 1298 64 . . Guns . | . . . . . Cannons 1359 | . 1298 61 . . Explosions . | . . . . . Melee . | . . . . . Ramming 3 | . . 3 . . Kinetic 1115 | . 1054 61 . . Thermal 244 | . 244 . . . Explosive . | . . . . . Electromagnetic . | . . . . . Impact . | . . . . . Slashing . | . . . . . Piercing . | . . . . . Highest Corruption . | . . . . . Average Corruption . | . . . . . Corruption Purged . | . . . . . Corruption Blocked . | . . . . . Overload Shots . | . . . . . Overflow Damage 9 | . 8 1 . . Projectiles 9 | . 8 1 . . Explosions . | . . . . . Melee . | . . . . . Knockbacks 20 | . 18 2 . . Impact . | . . . . . Kinetic 16 | . 14 2 . . Secondary 4 | . 4 . . . Self-Inflicted Damage . | . . . . . Shots . | . . . . . Rammed 1 | . . 1 . . Targets Rammed 1 | . . 1 . . Kicked . | . . . . . Crushed . | . . . . . Highest Temperature 99 | . 99 6 . . Average Temperature 35 | . 36 3 . . Received Heat Transfer 168 | . 168 . . . Siege Activations . | . . . . . Martial Activations . | . . . . . Shielding Activations . | . . . . . Robots Disrupted . | . . . . . Combat Hostiles . | . . . . . Robots Corrupted . | . . . . . Combat Hostiles . | . . . . . Parts Fried . | . . . . . Impact Corruptions . | . . . . . Robots Melted 1 | . 1 . . . Combat Hostiles 1 | . 1 . . . Parts Melted 3 | . 3 . . . Heat Transferred 518 | . 518 . . . Parts Sabotaged . | . . . . . Parts Stolen . | . . . . . Parts Stripped . | . . . . . Power Chain Reactions . | . . . . . Alert | -11 -10 -10 -10 -9 ------- Run | Yrd Mat Min Exi Min Maximum Alert Level . | . . . . . Low Security (%) 100 | 100 100 100 . 100 Level 1 . | . . . . . Level 2 . | . . . . . Level 3 . | . . . . . Level 4 . | . . . . . Level 5 . | . . . . . High Security . | . . . . . Max Security . | . . . . . Peak Influence 153 | . 153 19 . . Initial 19 | . . 19 . . Average 35 | . 64 . . . Influence Increases 437 | . 437 . . . Destroy 0b10 Robot/C 260 | . 260 . . . Destroy 0b10 Robot/NC 50 | . 50 . . . Destroy Leader 58 | . 58 . . . Successful Hack 14 | . 14 . . . Disable Machine 45 | . 45 . . . Destroy Structure 10 | . 10 . . . Influence Decreases 437 | . 385 52 . . Entered New Map 33 | . . 33 . . Time Decay 404 | . 385 19 . . Squads Dispatched 3 | . 2 . . 1 Investigation 2 | . 1 . . 1 Extermination . | . . . . . Reinforcement 1 | . 1 . . . Assault . | . . . . . Garrison . | . . . . . Intercept . | . . . . . Searches Triggered . | . . . . . Construction Impeded . | . . . . . Haulers Reinforced . | . . . . . Active Scanning Responses . | . . . . . Cargo Convoy Interrupts . | . . . . . Stealth | -11 -10 -10 -10 -9 --------- Run | Yrd Mat Min Exi Min Distress Signals 1 | . 1 . . . Communications Jammed . | . . . . . Distress Signals . | . . . . . Times Spotted 30 | . 28 2 . . Peak Tracking Total 4 | . 4 1 . . Tactical Retreats 1 | . . 1 . . Traps | -11 -10 -10 -10 -9 ------- Run | Yrd Mat Min Exi Min Traps Triggered . | . . . . . Indirectly . | . . . . . Trap Hack Attempts . | . . . . . Triggered . | . . . . . Disarmed . | . . . . . Reprogrammed . | . . . . . Reused . | . . . . . Traps Extracted . | . . . . . Installed . | . . . . . Triggered . | . . . . . Machines | -11 -10 -10 -10 -9 ---------- Run | Yrd Mat Min Exi Min Machines Disabled 3 | . 3 . . . Max in Single Turn 1 | . 1 . . . Machines Repaired . | . . . . . Machines Dismantled . | . . . . . Machines Sabotaged . | . . . . . Overloaded Fab Kills . | . . . . . Hacking | -11 -10 -10 -10 -9 --------- Run | Yrd Mat Min Exi Min Machines Accessed 9 | . 7 . 1 1 Terminals 5 | . 5 . . . Fabricators . | . . . . . Repair Stations 1 | . 1 . . . Recycling Units 1 | . 1 . . . Scanalyzers . | . . . . . Garrison Access . | . . . . . Total Hacks 24 | . 22 . 1 1 Successful 12 | . 10 . 1 1 Failed 12 | . 12 . . . Catastrophic 2 | . 2 . . . Database Lockouts . | . . . . . Manual 16 | . 15 . 1 . Terminals 18 | . 18 . . . Fabricators . | . . . . . Repair Stations 3 | . 3 . . . Recycling Units 1 | . 1 . . . Scanalyzers . | . . . . . Garrison Access . | . . . . . Terminal Hacks 5 | . 3 . 1 1 Prototype ID Bank 1 | . 1 . . . Open Door 1 | . . . . 1 Hauler Manifests 1 | . 1 . . . Zone Layout 1 | . 1 . . . Proto ID Catalog 1 | . . . 1 . Fabricator Hacks . | . . . . . Repair Station Hacks 3 | . 3 . . . Scan Component 2 | . 2 . . . Repair 1 | . 1 . . . Recycling Unit Hacks 1 | . 1 . . . Report Inventory 1 | . 1 . . . Scanalyzer . | . . . . . Garrison Access Hacks . | . . . . . Unauthorized Hacks 3 | . 3 . . . Terminals 3 | . 3 . . . Skim 3 | . 3 . . . Fabricators . | . . . . . Repair Stations . | . . . . . Recycling Units . | . . . . . Scanalyzers . | . . . . . Garrison Access . | . . . . . Data Cores Recovered 1 | . 1 . . . Used . | . . . . . Hacking Detections 6 | . 6 . . . Full Trace Events 2 | . 2 . . . Feedback Events . | . . . . . Feedback Blocked . | . . . . . Robot Schematics Acquired . | . . . . . Robots Built . | . . . . . Authchips . | . . . . . Time . | . . . . . Total Robot Build Rating . | . . . . . Part Schematics Acquired . | . . . . . Parts Built . | . . . . . Authchips . | . . . . . Time . | . . . . . Total Part Build Rating . | . . . . . Parts Repaired 1 | . 1 . . . Time 26 | . 26 . . . Parts Recycled . | . . . . . Recycled Matter . | . . . . . Retrieved Matter . | . . . . . Retrieved Components . | . . . . . Parts Scanalyzed . | . . . . . Part Schematics Acquired . | . . . . . Parts Damaged . | . . . . . Bothacking | -11 -10 -10 -10 -9 ------------ Run | Yrd Mat Min Exi Min Used RIF Installer . | . . . . . Robots Hacked . | . . . . . Non-combat . | . . . . . Combat . | . . . . . Robot Hacks Applied . | . . . . . Relay Couplers Released . | . . . . . Fabnet Peak Effective % . | . . . . . Robots Rewired . | . . . . . Allies Hacked . | . . . . . Hacks Repelled . | . . . . . Allies | -11 -10 -10 -10 -9 -------- Run | Yrd Mat Min Exi Min Total Allies . | . . . . . Largest Group . | . . . . . Highest-Rated Group . | . . . . . Highest-Rated Ally . | . . . . . Total Orders . | . . . . . Ally Attacks . | . . . . . Total Damage . | . . . . . Kills . | . . . . . Allies Corrupted . | . . . . . Allies Melted . | . . . . . Intel | -11 -10 -10 -10 -9 ------- Run | Yrd Mat Min Exi Min Active Infowar (turns) 1763 | . 438 935 374 16 Machine Analysis 1763 | . 438 935 374 16 Robot Analysis Total . | . . . . . Derelict Logs Recovered 1 | . . 1 . . Drone Launches . | . . . . . Drone Recoveries . | . . . . . Exploration | -11 -10 -10 -10 -9 ------------- Run | Yrd Mat Min Exi Min Turns Passed 2705 | 113 1267 935 374 16 Spaces Moved 1484 | 59 616 568 233 8 Core 2 | 2 . . . . Treads 1482 | 57 616 568 233 8 Legs . | . . . . . Wheels . | . . . . . Hover . | . . . . . Flight . | . . . . . Fastest Speed 50 | 50 160 160 160 160 Average Speed 159 | 156 160 160 160 160 Slowest Speed 160 | 160 160 160 160 160 Overloaded Moves . | . . . . . Propulsion Burnouts . | . . . . . Robots Hopped . | . . . . . Potential Cave-ins . | . . . . . Cave-ins Triggered . | . . . . . Exploration Rate (%) 50 | 4 92 90 60 5 Regions Visited 4 Branch Regions 3 Pre-discovered Areas . | . . . . . Known Exits Taken . | . . . . . Unknown Exits Taken 4 | 1 1 1 1 . Scrap Searched 1 | . . 1 . . Spaces Dug 2 | . 2 . . . Terrain Destroyed 6 | . 6 . . . Melee . | . . . . . Projectile 6 | . 6 . . . AOE . | . . . . . Terrain Rammed . | . . . . . Walls Destroyed . | . . . . . Machines Disabled . | . . . . . Actions | -11 -10 -10 -10 -9 --------- Run | Yrd Mat Min Exi Min Total 1687 | 77 775 590 234 11 Wait 102 | 12 72 17 . 1 Move 1480 | 58 615 567 232 8 Hop . | . . . . . Pick Up 15 | 1 10 1 2 1 Fast Attach 8 | 6 2 . . . Attach 5 | . 3 1 . 1 Detach 2 | . 2 . . . Swap 3 | . 2 1 . . Drop 2 | . 2 . . . Fire 69 | . 67 2 . . Melee . | . . . . . Ram . | . . . . . Kick . | . . . . . Crush 1 | . . 1 . . Escape Stasis . | . . . . . Rewire . | . . . . . Trap . | . . . . . Miscellaneous . | . . . . . Route ------- -11/Scrapyard -10/Materials (discovered 4 exits: [*Mat x3] / [*Min]) -10/Mines (discovered 4 exits: [*Mat x2] / *Exi / [*Sub]) -10/Exiles -9/Mines History --------- Turn | Location | Event 5 | -11/Scrapyard | Met Revision 17 13 | -11/Scrapyard | Discovered new exit (range 15) 114 | -11/Scrapyard | Entered Materials 218 | -10/Materials | Discovered new exit (range 6) 317 | -10/Materials | Build established: Mutant 527 | -10/Materials | Discovered new exit (range 13) 742 | -10/Materials | Discovered new exit (range 12) 842 | -10/Materials | Repaired Lgt. Treads 1057 | -10/Materials | Discovered new exit (range 16) 1381 | -10/Materials | Entered Mines 1388 | -10/Mines | Learned Materials garrison access intel 1413 | -10/Mines | Discovered new exit (range 10) 1642 | -10/Mines | Destroyed YI-UF0 1753 | -10/Mines | Discovered new exit (range 15) 1960 | -10/Mines | Discovered new exit (range 3) 1967 | -10/Mines | Received a Rocket Launcher from a helpful Derelict 2308 | -10/Mines | Deemed a non-threat by the Exiles lab entrance 2309 | -10/Mines | Discovered new exit (range 5) 2316 | -10/Mines | Entered Exiles 2355 | -10/Exiles | Met 8R-AWN 2384 | -10/Exiles | Met EX-HEX 2425 | -10/Exiles | Met EX-BIN 2446 | -10/Exiles | Aligned with FarCom system 2448 | -10/Exiles | Given EX-Vault access code 2486 | -10/Exiles | Opened EX-Vault 2497 | -10/Exiles | Found Gui. Plasma Cannon 2532 | -10/Exiles | Warned to stay clear of 0b10 Research branches 2552 | -10/Exiles | Exiles lab attacked by MAIN.C 2677 | -10/Exiles | Discovered new exit (range 10) 2690 | -10/Exiles | Left Exiles lab with Gui. Plasma Cannon 2690 | -10/Exiles | Entered Mines 2698 | -9/Mines | Met a Derelict shopkeep closing up shop 2706 | -9/Mines | Self-destructed Last Messages --------------- 02677_ EXIT=FOUND 02677_ AM-PHS exits level. 02677_ 5L-KAT exits level. 02684_ W1-DM0 exits level. 02687_ DK-RAY exits level. LOCATION=UNKNOWN GOAL=ESCAPE 02690_ Receiving FarCom transmissions... 02692_ DK-RAY: "That was close. Too bad in all the rush we got split up from the others." 02697_ Connecting with SHOP.Sys... 02697_ Current location identified: Mines >>Open Door Sealed Doors opened. 02698_ 9T-7OV(g): "Sorry, the Unaware have moved into these parts and I'm closing up shop. No more sales from me!" 02700_ ALERT: Derelict activity detected in mines. Dispatching investigation squad. 02702_ 9T-7OV(g): "You've got to be kidding me! I'm outta here..." 02705_ Acquired Gatling Laser. Map ----- +----------------------------------------------------+ | | | | | | | | | | | | | | | | | | | | | | | | | | | ?????????????????????????????????????????????????? | | ?????????????????????????????????????????????????? | | ?????????????????????????????????????????????????? | | ?????????????????????????????????????????????????? | | ?????????????????????????????????????????????????? | | ??????????????????????????????????####???????????? | | ?????????????????????????????????# ####### ???? | | ????????????????????????????????# ????? | | ???????????????????????####?#### ?g??????? | | ???????????????????????#"!### #???????????? | | ???????????????????????#"! =#X #????????????? | | ???????????????????????#"] ##????????????? | | ???????????????????????#"@ g ##?????????????? | | ???????????????????????#"! =# #??????????????? | | ???????????????????????#"!### #??????????????? | | ???????????????????????####? ##??????????????? | | ???????????????????????????# #####???????????????? | | ???????????????????????????# ????????????????????? | | ???????????????????????????# ????????????????????? | | ???????????????????????????# ????????????????????? | | ???????????????????????????# ????????????????????? | | ???????????????????????????##????????????????????? | | ?????????????????????????????????????????????????? | | ?????????????????????????????????????????????????? | | ?????????????????????????????????????????????????? | | ?????????????????????????????????????????????????? | | ?????????????????????????????????????????????????? | | ?????????????????????????????????????????????????? | | ?????????????????????????????????????????????????? | | ?????????????????????????????????????????????????? | | ?????????????????????????????????????????????????? | | ?????????????????????????????????????????????????? | | ?????????????????????????????????????????????????? | | ?????????????????????????????????????????????????? | | ?????????????????????????????????????????????????? | | ?????????????????????????????????????????????????? | | ?????????????????????????????????????????????????? | +----------------------------------------------------+ Best States ------------- Heat Dissipation 35 Energy Generation 10 Energy Capacity 250 Matter Stores 300 Matter Capacity 300 Sight Range 16 Terrain Scan Density 10 Evasion (%) 40 Recoil Reduction 2 Item Schematics ----------------- None Robot Schematics ------------------ None Fabricated ------------ Nothing Repaired ---------- Lgt. Treads | 48% | -10/Materials Alien Tech Used ----------------- None Achievements -------------- None Challenges ------------ None Game ------ Seed SurveybotBladeCarapace Manual? 0 Play Time 00:16:13 Cumulative 7.8 hours Start 2025.07.18 @ 18:22:05 End 2025.07.22 @ 18:14:27 Sessions 3 Manual Loads 0 Difficulty Rogue Special Mode None Game No. 11 Rogue 11 Adventurer 0 Explorer 0 Win Type - Total 1 Types 1/0/0/0/0/0/0/0/0/0 Lore% 9 Gallery% 10 Achievement% 32 Wizard Run 0 Options --------- Layout 0 ASCII 0 Keyboard 0 Movement Numpad Keybinds 1 Fullscreen 2 Font 24/Terminus Map View 76x50 Zoom Use 65% Tactical HUD 1 Map Filters NONE Filters NONE Steam 1 RUN: a067045f-8130-4bf0-aa61-8f21b17368ab